fUSD/lending_fUSD_20240220
["ID","MTS","AMOUNT","RATE_DAILY","PERIOD"]
[314611862,1708450352418,-1000.0,0.00054795,12]
[314611863,1708450352427,-1000.0,0.00054795,12]
[314611864,1708450352436,-1000.0,0.00054795,12]
[314611865,1708450352445,-1000.0,0.00054795,12]
[314611866,1708450352454,-1000.0,0.00054795,12]
[314611867,1708450352463,-1000.0,0.00054795,12]
[314611868,1708450352473,-1000.0,0.00054795,12]
[314611869,1708450352482,-1000.0,0.00054795,12]
[314611870,1708450352491,-1000.0,0.00054795,12]
[314611871,1708450352500,-773.0,0.00054795,12]
[314611872,1708450352510,-2023.27,0.00054795,30]
[314611873,1708450352519,-149182.67,0.00054795,30]
[314611874,1708450352528,-161.04,0.00054795,30]
[314611875,1708450352538,-1000.0,0.00054795,12]
[314611876,1708450352548,-1000.0,0.00054795,12]
[314611877,1708450352558,-1000.0,0.00054795,12]
[314611878,1708450352569,-1000.0,0.00054795,12]
[314611879,1708450352579,-1000.0,0.00054795,12]
[314611880,1708450352589,-1000.0,0.00054795,12]
[314611881,1708450352598,-1034.0,0.00054795,12]
[314611882,1708450352607,-151.97,0.00054795,2]
[314611883,1708450352616,-294.84,0.00054795,120]
[314611884,1708450352626,-500.0,0.00054795,120]
[314611885,1708450352635,-500.0,0.00054795,120]
[314611886,1708450352644,-500.0,0.00054795,120]
[314611887,1708450352656,-500.0,0.00054795,120]
[314611888,1708450352667,-500.0,0.00054795,120]
[314611889,1708450352677,-631.02565224,0.00054795,120]
[314611890,1708450352686,-504.4082,0.00054795,120]
[314611891,1708450352695,-500.0,0.000548,10]
[314611892,1708450352705,-155.0,0.000548,120]
[314611893,1708450352714,-219.3587278,0.000548,120]
[314611894,1708450352723,-10155.90070104,0.000548,30]
[314611895,1708450352732,-375.0,0.000548,30]
[314611896,1708450352742,-16499.999998,0.000548,120]
[314611897,1708450352751,-5000.0,0.000548,120]
[314611898,1708450352760,-156.41,0.00054803,2]
[314611899,1708450352769,-159.75125406,0.0005481,60]
[314611900,1708450352778,-154.0388237,0.00054815,60]
[314611901,1708450352787,-153.19552487,0.00054823,60]
[314611902,1708450352796,-182.04039637,0.00054833,60]
[314611903,1708450352806,-951.37034958,0.0005486,60]
[314611904,1708450352815,-196.35429008,0.00054872,60]
[314611905,1708450352824,-154.33839749,0.00054879,60]
[314611906,1708450352834,-863.84585635,0.00054888,120]
[314611907,1708450352843,-154.93146774,0.00054891,60]
[314611908,1708450352852,-200.0,0.00054899,120]
[314611909,1708450352862,-200.0,0.00054899,120]
[314611910,1708450352871,-207.0,0.000549,49]
[314611911,1708450352880,-564590.40134503,0.000549,60]
[314611912,1708450353357,-296.060674,0.00046575,14]
[314611913,1708450353367,-151.0,0.00046575,14]
[314611914,1708450353376,-296.060674,0.00046575,14]
[314611915,1708450353385,-86.18428351,0.00046575,14]
[314611916,1708450353420,-76.82722349,0.00046575,14]
[314611917,1708450353429,-163.011507,0.00046575,14]
[314611918,1708450353439,-500.0,0.00046849,30]
[314611919,1708450353448,-152.2335651,0.00047,14]
[314611920,1708450353459,-36.7711609,0.00047,14]
[314611921,1708450353469,-500.0,0.00047123,30]
[314611922,1708450353479,-500.0,0.00047123,30]
[314611923,1708450353488,-500.0,0.00047397,30]
[314611924,1708450353497,-500.0,0.00047397,30]
[314611925,1708450353507,-500.0,0.00047671,30]
[314611926,1708450353516,-163.011507,0.00049589,120]
[314611927,1708450353526,-151.08,0.00053,120]
[314611928,1708450353535,-437.55,0.00053977,120]
[314611929,1708450353544,-1778.5873321,0.000549,60]
[314611930,1708450353556,-769.84636083,0.000549,60]
[314611931,1708450353568,-5971.936449,0.000549,60]
[314611932,1708450353581,-4469.41718255,0.000549,60]
[314611933,1708450353592,-5090.77920907,0.000549,60]
[314611934,1708450353605,-6689.5417651,0.000549,60]
[314611935,1708450353624,-620.30278712,0.000549,60]
[314611936,1708450353643,-163.011507,0.00047,14]
[314611937,1708450353655,-89.76626513,0.00047671,30]
[314611938,1708450353667,-272.43998944,0.00047671,30]
[314611939,1708450353679,-137.79374543,0.00047671,30]
[314611940,1708450353688,-16983.69432899,0.000549,60]
[314611941,1708450353697,-490.30442568,0.000549,110]
[314611942,1708450353706,-32988.2074999,0.000549,2]
[314611943,1708450353729,-500.0,0.00046849,30]
[314611944,1708450353739,-500.0,0.00047945,30]
[314611945,1708450353748,-1930.73932768,0.000549,2]
[314611946,1708450353759,-6773.61539106,0.000549,2]
[314611947,1708450353769,-802.49999943,0.000549,2]
[314611948,1708450353780,-1086.00000006,0.000549,2]
[314611949,1708450353790,-7738.1,0.000549,2]
[314611950,1708450353801,-4385.4,0.000549,2]
[314611951,1708450378608,-2.41518008,0.000329,30]
[314611952,1708450378638,-22375.16963984,0.000329,30]
[314611953,1708450415637,-300.0,0.000329,30]
[314611954,1708450415665,-2400.0,0.000329,30]
[314611957,1708450560096,750.0,0.00025,3]
[314611958,1708450685428,176.9,0.00027397,2]
[314611959,1708450765678,549.0,0.00031,2]
[314611974,1708450931506,1234.84823155,0.00031,2]
[314611978,1708451144158,-300.0,0.00034519,3]
[314611979,1708451144180,-400.0,0.00034519,3]
[314611980,1708451144201,-557.49417398,0.00034519,2]
[314611981,1708451144221,-378.0,0.00034519,3]
[314611982,1708451144245,-2109.159352,0.0003452,2]
[314611983,1708451144267,-14523.254497,0.0003452,2]
[314611984,1708451144290,-341.739542,0.0003452,2]
[314611985,1708451144318,-3163.739028,0.00034794,2]
[314611986,1708451144340,-11739.82480172,0.00034794,2]
[314611987,1708451156471,151.97,0.00027397,2]
[314611988,1708451225089,-599.63465986,0.00034793,2]
[314611989,1708451225112,-10045.05694328,0.00034794,2]
[314611990,1708451225134,-512.609313,0.00034794,2]
[314611991,1708451225156,-4218.318704,0.00034931,2]
[314611992,1708451225181,-5842.76584206,0.00034931,2]
[314611993,1708451238099,-238.88339863,0.0003493,4]
[314611994,1708451238119,-23203.74315194,0.00034931,2]
[314611995,1708451238139,-683.479084,0.00034931,2]
[314611996,1708451238159,-165.0,0.00035,2]
[314611997,1708451238177,-165.0,0.00035,2]
[314611998,1708451238197,-5272.89838,0.00035068,2]
[314611999,1708451238219,-1716.16130036,0.00035068,2]
[314612000,1708451239116,-34591.97494164,0.00035068,2]
[314612001,1708451239138,-854.348855,0.00035068,2]
[314612002,1708451239157,-1459.51094226,0.00035242,2]
[314612003,1708451239177,-7382.057732,0.00035342,2]
[314612004,1708451239198,-50831.39074,0.00035342,2]
[314612005,1708451239220,-1196.088397,0.00035342,2]
[314612006,1708451239240,-2209.8173,0.000368,30]
[314612007,1708451239261,-158.69061245,0.000369,2]
[314612008,1708451239282,-299.9999993,0.00037,38]
[314612009,1708451239303,-370.91,0.00037256,2]
[314612010,1708451239323,-530.34199631,0.00037347,4]
[314612011,1708451239343,-286.42772352,0.00037347,4]
[314612012,1708451239363,-204.36872368,0.00037348,4]
[314612013,1708451239385,-1405.05,0.00037349,2]
[314612014,1708451239403,-176.9,0.00037671,2]
[314612015,1708451239423,-1459.51094226,0.00038032,2]
[314612016,1708451239468,-1153.2,0.00038526,2]
[314612017,1708451239488,-5373.02,0.00038611,2]
[314612018,1708451239507,-4000.0,0.00038844,30]
[314612019,1708451239525,-200.0,0.00038848,2]
[314612020,1708451239545,-357.52,0.00038894,15]
[314612021,1708451239564,-250.0,0.00038894,2]
[314612022,1708451239585,-19667.42280653,0.00038936,2]
[314612023,1708451240121,-4232.57719347,0.00038936,2]
[314612024,1708451240146,-423.74,0.00038961,2]
[314612025,1708451240167,-200.0,0.00038961,2]
[314612026,1708451240188,-723.94627624,0.00038986,2]
[314612027,1708451241097,-1276.05372376,0.00038986,2]
[314612028,1708451241117,-156.0,0.00039016,2]
[314612029,1708451241136,-2507.58,0.00039075,2]
[314612030,1708451241153,-786.03,0.00039104,2]
[314612031,1708451241178,-155.0,0.00039151,2]
[314612032,1708451241199,-250.0,0.00039151,2]
[314612033,1708451241218,-160.15,0.00039281,2]
[314612034,1708451241236,-10348.0,0.00039309,2]
[314612035,1708451241253,-177.92,0.00039397,2]
[314612036,1708451241270,-250.19,0.00039398,2]
[314612037,1708451241287,-250.0,0.00039398,2]
[314612038,1708451241307,-246.03,0.00039398,2]
[314612039,1708451241326,-370.91,0.0003952,2]
[314612040,1708451241346,-177.92,0.00039604,2]
[314612041,1708451241362,-160.84,0.00039626,2]
[314612042,1708451241380,-177.92,0.00039811,2]
[314612043,1708451241398,-160.15,0.00039963,2]
[314612044,1708451241416,-300.0,0.0004,7]
[314612045,1708451241433,-321.7880208,0.0004,30]
[314612046,1708451241450,-165.0,0.0004,2]
[314612047,1708451241466,-165.0,0.0004,2]
[314612048,1708451241481,-499.99,0.0004,2]
[314612049,1708451241501,-3945.70482291,0.0004,7]
[314612050,1708451241516,-3304.4475099,0.0004,14]
[314612051,1708451250094,-5924.53383842,0.0004,14]
[314612052,1708451250113,-154.17169298,0.0004,2]
[314612053,1708451250132,-154.17169298,0.0004,2]
[314612054,1708451250151,-154.17169298,0.0004,2]
[314612055,1708451250170,-154.17169298,0.0004,2]
[314612056,1708451250189,-154.17169298,0.0004,2]
[314612057,1708451250208,-154.17169298,0.0004,2]
[314612058,1708451250229,-177.92,0.00040019,2]
[314612059,1708451250249,-791.0467636,0.0004007,9]
[314612060,1708451250269,-3261.59187538,0.000401,2]
[314612061,1708451250289,-2667.89595608,0.000401,2]
[314612062,1708451250309,-154.17169298,0.00040141,2]
[314612063,1708451250329,-154.17169298,0.00040141,2]
[314612064,1708451250348,-7283.86233205,0.0004015,2]
[314612065,1708451250368,-73638.355,0.00040151,2]
[314612066,1708451250388,-355.70519103,0.0004017,2]
[314612076,1708451432292,-199.06949886,0.00038122,4]
[314612077,1708451432303,-333.81,0.00038123,2]
[314612078,1708451432313,-196.82,0.00038743,2]
[314612079,1708451432323,-906.4,0.00039706,2]
[314612080,1708451432333,-250.0,0.00039706,111]
[314612081,1708451432343,-150.0,0.00039741,2]
[314612082,1708451432352,-5346.27722614,0.00039741,2]
[314612083,1708451432367,-2817.83277386,0.00039741,2]
[314612084,1708451432377,-2000.0,0.00039876,2]
[314612085,1708451432386,-1309.39522614,0.0004007,14]
[314612086,1708451432499,-409.22397386,0.0004007,14]
[314612087,1708451432511,-797.49480897,0.0004017,2]
[314612088,1708451432521,-160.15,0.00040176,2]
[314612089,1708451432530,-196.82,0.00040176,2]
[314612090,1708451432542,-300.0,0.000402,7]
[314612091,1708451432551,-501.23,0.000402,4]
[314612092,1708451432560,-501.23,0.000402,4]
[314612093,1708451432569,-501.23,0.000402,4]
[314612094,1708451432578,-501.23,0.000402,4]
[314612095,1708451432587,-501.23,0.000402,4]
[314612096,1708451432596,-501.23,0.000402,4]
[314612097,1708451432605,-501.23,0.000402,4]
[314612098,1708451432614,-501.23,0.000402,4]
[314612099,1708451432623,-501.23,0.000402,4]
[314612100,1708451432634,-501.23,0.000402,4]
[314612101,1708451432643,-501.23,0.000402,4]
[314612102,1708451432652,-501.23,0.000402,4]
[314612103,1708451432663,-501.23,0.000402,4]
[314612104,1708451432672,-501.23,0.000402,4]
[314612105,1708451432682,-501.23,0.000402,4]
[314612106,1708451432691,-501.23,0.000402,4]
[314612107,1708451432701,-501.23,0.000402,4]
[314612108,1708451432711,-501.23,0.000402,4]
[314612109,1708451432719,-501.23,0.000402,4]
[314612110,1708451432728,-501.23,0.000402,4]
[314612111,1708451432739,-177.92,0.00040226,2]
[314612112,1708451432748,-499.99,0.00040226,2]
[314612113,1708451432757,-333.81,0.00040387,2]
[314612114,1708451432767,-300.0,0.000404,7]
[314612115,1708451432776,-278.952847,0.000404,2]
[314612116,1708451432788,-177.92,0.00040433,2]
[314612117,1708451432797,-366.05619567,0.000406,7]
[314612118,1708451432807,-1000.0,0.000406,15]
[314612119,1708451432816,-1000.0,0.000406,15]
[314612120,1708451432825,-177.92,0.00040641,2]
[314612121,1708451432835,-39122.8330096,0.0004065,14]
[314612122,1708451432844,-23710.08780748,0.0004065,14]
[314612123,1708451432853,-2032.14903353,0.0004065,8]
[314612124,1708451432862,-378.77,0.00040808,10]
[314612125,1708451432871,-315.65,0.00040808,10]
[314612126,1708451432880,-2793.34017736,0.00040818,3]
[314612127,1708451432889,-6606.5886801,0.00040818,3]
[314612128,1708451432899,-505.95941942,0.00040821,13]
[314612129,1708451432908,-486.50364742,0.00040821,2]
[314612130,1708451432918,-670.647,0.00040821,2]
[314612131,1708451432927,-177.92,0.00040848,2]
[314612132,1708451432937,-1000.0,0.000409,15]
[314612133,1708451432947,-654.52,0.00040908,10]
[314612134,1708451432957,-545.44,0.00040908,10]
[314612135,1708451432966,-454.53,0.00040908,10]
[314612136,1708451432975,-127916.6604,0.00040918,7]
[314612137,1708451432984,-300.0,0.00040918,34]
[314612138,1708451432994,-300.0,0.00040918,35]
[314612139,1708451433003,-326.0,0.00040918,120]
[314612140,1708451433011,-150.1,0.00040918,30]
[314612141,1708451433020,-200.0,0.00040987,50]
[314612142,1708451433029,-1998.915029,0.00041046,2]
[314612143,1708451433040,-254.181053,0.00041046,2]
[314612144,1708451433049,-254.181053,0.00041046,2]
[314612145,1708451433059,-1998.915028,0.00041046,2]
[314612146,1708451433068,-177.92,0.00041055,2]
[314612147,1708451433077,-177.92,0.00041263,2]
[314612148,1708451433087,-177.92,0.0004147,2]
[314612149,1708451433096,-1998.915029,0.00041559,30]
[314612150,1708451433105,-1998.915028,0.00041559,30]
[314612151,1708451433114,-196.82,0.0004161,2]
[314612152,1708451433124,-177.92,0.00041678,2]
[314612153,1708451433134,-1153.2,0.00041814,2]
[314612154,1708451433143,-177.92,0.00041885,2]
[314612155,1708451433152,-200.0,0.00041987,51]
[314612156,1708451433161,-1503.1144,0.00042,59]
[314612157,1708451433170,-1015.56,0.00042,14]
[314612158,1708451433180,-200.0,0.00042,2]
[314612159,1708451433189,-1998.915029,0.00042072,30]
[314612160,1708451433199,-1998.915028,0.00042072,30]
[314612161,1708451433208,-177.92,0.00042092,2]
[314612162,1708451433217,-179.36,0.00042207,2]
[314612163,1708451433226,-160.15,0.00042269,2]
[314612164,1708451433236,-177.92,0.000423,2]
[314612165,1708451433244,-525.30590399,0.000424,5]
[314612166,1708451433254,-154.17,0.0004242,2]
[314612167,1708451433263,-501.23,0.000425,4]
[314612168,1708451433273,-501.23,0.000425,4]
[314612169,1708451433284,-501.23,0.000425,4]
[314612170,1708451433294,-501.23,0.000425,4]
[314612171,1708451433304,-501.23,0.000425,4]
[314612172,1708451433313,-501.23,0.000425,4]
[314612173,1708451433323,-501.23,0.000425,4]
[314612174,1708451433333,-501.23,0.000425,4]
[314612175,1708451433343,-501.23,0.000425,4]
[314612176,1708451433353,-501.23,0.000425,4]
[314612177,1708451433363,-501.23,0.000425,4]
[314612178,1708451433373,-501.23,0.000425,4]
[314612179,1708451433382,-501.23,0.000425,4]
[314612180,1708451433393,-501.23,0.000425,4]
[314612181,1708451433403,-501.23,0.000425,4]
[314612182,1708451433413,-501.23,0.000425,4]
[314612183,1708451433422,-501.23,0.000425,4]
[314612184,1708451433433,-501.23,0.000425,4]
[314612185,1708451433442,-501.23,0.000425,4]
[314612186,1708451433451,-501.23,0.000425,4]
[314612187,1708451433460,-177.92,0.00042507,2]
[314612188,1708451433470,-1998.915029,0.00042585,30]
[314612189,1708451433482,-1998.915028,0.00042585,30]
[314612190,1708451433491,-357.52,0.0004263,15]
[314612191,1708451433500,-333.81,0.0004265,2]
[314612192,1708451433510,-177.92,0.00042714,2]
[314612193,1708451433519,-2793.3401773,0.00042716,4]
[314612194,1708451433528,-6606.58868006,0.00042716,4]
[314612195,1708451433539,-177.92,0.00042922,2]
[314612196,1708451433548,-200.0,0.00042987,52]
[314612197,1708451433558,-196.82,0.00043043,2]
[314612198,1708451433567,-1998.915029,0.00043098,30]
[314612199,1708451433576,-1998.915028,0.00043098,30]
[314612200,1708451433585,-177.92,0.00043129,2]
[314612201,1708451433595,-525.30590397,0.00043181,5]
[314612202,1708451433604,-177.92,0.00043336,2]
[314612203,1708451433625,-1153.2,0.00043458,2]
[314612204,1708451433638,-486.50364742,0.00043544,2]
[314612205,1708451433649,-160.84,0.00043589,2]
[314612206,1708451433659,-452.69721559,0.0004364,7]
[314612207,1708451433668,-4448.58735419,0.0004364,7]
[314612208,1708451433678,-611.6807612,0.0004364,7]
[314612209,1708451433687,-450.0,0.0004364,7]
[314612210,1708451433697,-4106.70108661,0.0004364,7]
[314612211,1708451433706,-500.0,0.0004373,4]
[314612212,1708451433716,-500.0,0.00043738,4]
[314612213,1708451433726,-500.0,0.00043747,4]
[314612214,1708451433736,-500.0,0.00043756,4]
[314612215,1708451433746,-500.0,0.00043765,4]
[314612216,1708451433755,-500.0,0.00043774,4]
[314612217,1708451433764,-500.0,0.00043782,4]
[314612218,1708451433773,-500.0,0.00043791,4]
[314612219,1708451433784,-500.0,0.000438,4]
[314612220,1708451433793,-180.0,0.00043806,2]
[314612221,1708451433803,-525.30590397,0.00043963,5]
[314612222,1708451433812,-200.0,0.00043987,53]
[314612223,1708451433822,-5000.0,0.00044,60]
[314612224,1708451433831,-179.36,0.00044447,2]
[314612225,1708451433840,-11390.0,0.00044463,7]
[314612226,1708451433850,-196.82,0.00044476,2]
[314612227,1708451433859,-2793.3401773,0.00044614,6]
[314612228,1708451433868,-6606.58868006,0.00044614,6]
[314612229,1708451433877,-1211.90449827,0.00044644,11]
[314612230,1708451433886,-906.4,0.00044669,2]
[314612231,1708451433895,-525.30590397,0.00044744,5]
[314612232,1708451433904,-210.0,0.0004486,30]
[314612233,1708451433914,-900.0,0.00044882,4]
[314612234,1708451433924,-900.0,0.00044882,4]
[314612235,1708451433934,-900.0,0.00044882,4]
[314612236,1708451433944,-900.0,0.00044882,4]
[314612237,1708451433953,-900.0,0.00044882,4]
[314612238,1708451433962,-900.0,0.00044882,4]
[314612239,1708451433971,-900.0,0.00044882,4]
[314612240,1708451433980,-900.0,0.00044882,4]
[314612241,1708451433990,-900.0,0.00044882,4]
[314612242,1708451433999,-900.0,0.00044882,4]
[314612243,1708451434008,-900.0,0.00044882,4]
[314612244,1708451434018,-900.0,0.00044882,4]
[314612245,1708451434027,-900.0,0.00044882,4]
[314612246,1708451434038,-900.0,0.00044882,4]
[314612247,1708451434047,-900.0,0.00044882,4]
[314612248,1708451434056,-900.0,0.00044882,4]
[314612249,1708451434065,-900.0,0.00044882,4]
[314612250,1708451434074,-900.0,0.00044882,4]
[314612251,1708451434083,-900.0,0.00044882,4]
[314612252,1708451434091,-900.0,0.00044882,4]
[314612253,1708451434100,-900.0,0.00044882,4]
[314612254,1708451434109,-900.0,0.00044882,4]
[314612255,1708451434119,-900.0,0.00044882,4]
[314612256,1708451434128,-900.0,0.00044882,4]
[314612257,1708451434137,-900.0,0.00044882,4]
[314612258,1708451434150,-900.0,0.00044882,4]
[314612259,1708451434161,-900.0,0.00044882,4]
[314612260,1708451434170,-900.0,0.00044882,4]
[314612261,1708451434180,-900.0,0.00044882,4]
[314612262,1708451434189,-900.0,0.00044882,4]
[314612263,1708451434199,-900.0,0.00044882,4]
[314612264,1708451434209,-900.0,0.00044882,4]
[314612265,1708451434218,-900.0,0.00044882,4]
[314612266,1708451434227,-900.0,0.00044882,4]
[314612267,1708451434237,-900.0,0.00044882,4]
[314612268,1708451434246,-900.0,0.00044882,4]
[314612269,1708451434255,-900.0,0.00044882,4]
[314612270,1708451434264,-900.0,0.00044882,4]
[314612271,1708451434274,-900.0,0.00044882,4]
[314612272,1708451434284,-900.0,0.00044882,4]
[314612273,1708451434294,-900.0,0.00044882,4]
[314612274,1708451434303,-900.0,0.00044882,4]
[314612275,1708451434313,-900.0,0.00044882,4]
[314612276,1708451434323,-900.0,0.00044882,4]
[314612277,1708451434332,-900.0,0.00044882,4]
[314612278,1708451434342,-900.0,0.00044882,4]
[314612279,1708451434352,-900.0,0.00044882,4]
[314612280,1708451434362,-900.0,0.00044882,4]
[314612281,1708451434371,-900.0,0.00044882,4]
[314612282,1708451434381,-900.0,0.00044882,4]
[314612283,1708451434390,-900.0,0.00044882,4]
[314612284,1708451434399,-900.0,0.00044882,4]
[314612285,1708451434407,-900.0,0.00044882,4]
[314612286,1708451434417,-900.0,0.00044882,4]
[314612287,1708451434426,-900.0,0.00044882,4]
[314612288,1708451434435,-900.0,0.00044882,4]
[314612289,1708451434444,-900.0,0.00044882,4]
[314612290,1708451434454,-900.0,0.00044882,4]
[314612291,1708451434463,-900.0,0.00044882,4]
[314612292,1708451434473,-900.0,0.00044882,4]
[314612293,1708451434482,-900.0,0.00044882,4]
[314612294,1708451434494,-900.0,0.00044882,4]
[314612295,1708451434503,-900.0,0.00044882,4]
[314612296,1708451434513,-900.0,0.00044882,4]
[314612297,1708451434522,-900.0,0.00044882,4]
[314612298,1708451434532,-900.0,0.00044882,4]
[314612299,1708451434543,-900.0,0.00044882,4]
[314612300,1708451434552,-900.0,0.00044882,4]
[314612301,1708451434562,-1009.0,0.00044882,4]
[314612302,1708451434572,-501.23,0.000449,5]
[314612303,1708451434582,-501.23,0.000449,5]
[314612304,1708451434592,-501.23,0.000449,5]
[314612305,1708451434602,-501.23,0.000449,5]
[314612306,1708451434612,-501.23,0.000449,5]
[314612307,1708451434622,-501.23,0.000449,5]
[314612308,1708451434631,-501.23,0.000449,5]
[314612309,1708451434640,-501.23,0.000449,5]
[314612310,1708451434650,-501.23,0.000449,5]
[314612311,1708451434661,-501.23,0.000449,5]
[314612312,1708451434671,-501.23,0.000449,5]
[314612313,1708451434682,-501.23,0.000449,5]
[314612314,1708451434694,-501.23,0.000449,5]
[314612315,1708451434704,-501.23,0.000449,5]
[314612316,1708451434713,-501.23,0.000449,5]
[314612317,1708451434723,-501.23,0.000449,5]
[314612318,1708451434734,-501.23,0.000449,5]
[314612319,1708451434743,-501.23,0.000449,5]
[314612320,1708451434752,-501.23,0.000449,5]
[314612321,1708451434762,-501.23,0.000449,5]
[314612322,1708451434771,-1140.0,0.000449,22]
[314612323,1708451434780,-333.81,0.00044914,2]
[314612324,1708451434791,-200.0,0.00044987,54]
[314612325,1708451434801,-2000.0,0.00045,4]
[314612326,1708451434810,-1000.0,0.00045,12]
[314612327,1708451434820,-1153.2,0.00045102,2]
[314612328,1708451434829,-2851.9033,0.0004514,30]
[314612329,1708451434839,-156.0,0.00045519,2]
[314612330,1708451434848,-525.30590397,0.00045525,5]
[314612331,1708451434857,-481.44966921,0.000456,7]
[314612332,1708451434867,-1217.909395,0.000458,120]
[314612333,1708451434876,-210.0,0.0004587,30]
[314612334,1708451434886,-200.0,0.00045987,63]
[314612335,1708451434895,-200.0,0.00045987,61]
[314612336,1708451434904,-643.31119786,0.00046,120]
[314612337,1708451434913,-486.50364742,0.00046267,2]
[314612338,1708451434922,-525.30590397,0.00046306,5]
[314612339,1708451434931,-1211.90449823,0.00046351,12]
[314612340,1708451434940,-357.52,0.00046366,15]
[314612341,1708451434949,-300.0,0.00046475,2]
[314612342,1708451434959,-5000.0,0.00046475,7]
[314612343,1708451434969,-1020.0,0.000465,30]
[314612344,1708451434978,-2793.3401773,0.00046512,8]
[314612345,1708451434987,-6606.58868006,0.00046512,8]
[314612346,1708451434996,-1129.0,0.0004656,30]
[314612347,1708451435005,-500.0,0.00046575,30]
[314612348,1708451435015,-1000.0,0.00046575,2]
[314612349,1708451435025,-500.0,0.00046575,30]
[314612350,1708451435035,-500.0,0.00046575,30]
[314612351,1708451435044,-547.93131518,0.00046575,30]
[314612352,1708451435054,-500.0,0.00046575,30]
[314612353,1708451435064,-500.0,0.00046575,30]
[314612354,1708451435073,-500.0,0.00046575,30]
[314612355,1708451435082,-500.0,0.00046575,30]
[314612356,1708451435091,-500.0,0.00046575,30]
[314612357,1708451435101,-522.50903292,0.00046575,30]
[314612358,1708451435110,-515.29992582,0.00046575,30]
[314612359,1708451435120,-1000.0,0.00046575,2]
[314612360,1708451435130,-500.0,0.00046575,20]
[314612361,1708451435140,-500.0,0.00046575,20]
[314612362,1708451435149,-500.0,0.00046575,20]
[314612363,1708451435159,-500.0,0.00046575,20]
[314612364,1708451435169,-500.0,0.00046575,20]
[314612365,1708451435179,-500.0,0.00046575,20]
[314612366,1708451435189,-500.0,0.00046575,20]
[314612367,1708451435198,-563.89055529,0.00046575,30]
[314612368,1708451435208,-500.0,0.00046575,20]
[314612369,1708451435218,-500.0,0.00046575,20]
[314612370,1708451435231,-341.91,0.00046575,20]
[314612371,1708451435240,-520.02143848,0.00046575,30]
[314612372,1708451435250,-500.0,0.00046575,30]
[314612373,1708451435259,-500.0,0.00046575,30]
[314612374,1708451435269,-500.0,0.00046575,30]
[314612375,1708451435279,-400.37163547,0.00046575,30]
[314612376,1708451435289,-500.0,0.00046575,30]
[314612377,1708451435299,-518.40599047,0.00046575,30]
[314612378,1708451435308,-500.0,0.00046575,30]
[314612379,1708451435318,-500.0,0.00046575,30]
[314612380,1708451435339,-500.0,0.00046575,30]
[314612381,1708451435366,-653.11,0.00046575,30]
[314612382,1708451435376,-430.64169721,0.00046575,30]
[314612383,1708451435385,-500.0,0.00046575,2]
[314612384,1708451435395,-500.0,0.00046575,30]
[314612385,1708451435405,-500.0,0.00046575,30]
[314612386,1708451435414,-500.0,0.00046575,30]
[314612387,1708451435424,-500.0,0.00046575,30]
[314612388,1708451435433,-500.0,0.00046575,30]
[314612389,1708451435443,-500.0,0.00046575,30]